bitfinex/quotes_SOLUSD_20230105
["timestamp","ask_amount","ask_price","bid_price","bid_amount"]
[1672916524154,123.1807,13.23,13.215,56.79]
[1672916524363,123.1807,13.23,13.217,20.0]
[1672916524681,123.1807,13.23,13.218,56.78]
[1672916525293,123.1807,13.23,13.217,56.78]
[1672916525713,20.0,13.229,13.215,56.79]
[1672916525927,20.0,13.229,13.216,20.0]
[1672916526476,20.0,13.229,13.215,20.0]
[1672916527072,20.0,13.229,13.215,40.0]
[1672916528244,142.6607,13.23,13.215,40.0]
[1672916528465,142.6607,13.23,13.216,20.0]
[1672916528776,142.6607,13.23,13.216,76.79]
[1672916529916,116.6507,13.23,13.216,76.79]
[1672916534333,116.6507,13.23,13.216,56.79]
[1672916534548,142.6607,13.23,13.216,56.79]
[1672916534783,129.275,13.229,13.215,20.0]
[1672916534975,20.0,13.228,13.217,20.0]
[1672916535306,109.275,13.229,13.217,20.0]
[1672916535700,109.275,13.229,13.216,56.79]
[1672916537387,20.0,13.228,13.216,56.79]
[1672916539405,109.275,13.229,13.216,56.79]
[1672916541931,20.0,13.228,13.216,56.79]
[1672916543628,109.275,13.229,13.216,56.79]
[1672916547089,109.275,13.229,13.216,79.20737149]
[1672916549487,109.275,13.229,13.217,20.0]
[1672916550665,109.275,13.229,13.216,79.20737149]
[1672916551195,20.0,13.228,13.216,56.79]
[1672916551377,20.0,13.228,13.215,20.0]
[1672916552641,20.0,13.228,13.215,42.41737149]
[1672916554761,109.275,13.229,13.215,42.41737149]
[1672916554977,109.275,13.229,13.215,99.20737149]
[1672916556550,109.275,13.229,13.215,42.41737149]
[1672916556757,20.0,13.228,13.215,42.41737149]
[1672916558956,20.0,13.228,13.215,20.0]
[1672916559167,20.0,13.228,13.213,56.8]
[1672916559168,20.45345601,13.228,13.214,20.0]
[1672916559390,109.275,13.229,13.215,20.0]
[1672916559604,109.275,13.229,13.216,42.41737149]
[1672916559807,109.275,13.229,13.216,20.0]
[1672916560430,109.275,13.229,13.216,76.79]
[1672916561383,109.275,13.229,13.217,20.0]
[1672916561809,109.275,13.229,13.217,42.41737149]
[1672916563156,109.275,13.229,13.218,56.78]
[1672916563386,109.275,13.229,13.219,20.0]
[1672916564858,109.275,13.229,13.221,20.0]
[1672916565037,109.275,13.229,13.22,56.77]
[1672916566208,109.275,13.229,13.22,20.0]
[1672916567479,109.275,13.229,13.219,56.78]
[1672916569144,109.275,13.229,13.219,20.0]
[1672916569874,109.275,13.229,13.218,56.78]
[1672916572204,109.275,13.229,13.219,20.0]
[1672916573448,109.275,13.229,13.218,56.78]
[1672916573653,109.275,13.229,13.216,132.7471]
[1672916574085,109.275,13.229,13.218,20.0]
[1672916580408,109.275,13.229,13.22,20.0]
[1672916581152,109.275,13.229,13.219,56.78]
[1672916584072,109.275,13.229,13.219,20.0]
[1672916584724,109.275,13.229,13.218,56.78]
[1672916586827,109.275,13.229,13.218,79.19737149]
[1672916587048,109.275,13.229,13.219,20.0]
[1672916589894,109.275,13.229,13.218,56.78]
[1672916593236,109.275,13.229,13.218,20.0]
[1672916593453,109.275,13.229,13.219,56.78]
[1672916593651,109.275,13.229,13.22,20.0]
[1672916593886,109.275,13.229,13.219,56.78]
[1672916594616,109.275,13.229,13.219,20.0]
[1672916595038,109.275,13.229,13.218,56.78]
[1672916597218,109.275,13.229,13.218,20.0]
[1672916597643,109.275,13.229,13.217,56.78]
[1672916608469,109.275,13.229,13.218,20.0]
[1672916609751,109.275,13.229,13.217,76.78]
[1672916610064,109.275,13.229,13.218,20.0]
[1672916611527,109.275,13.229,13.217,56.78]
[1672916611742,109.275,13.229,13.216,132.7471]
[1672916613235,109.275,13.229,13.218,20.0]
[1672916613629,109.275,13.229,13.217,56.78]
[1672916614587,109.275,13.229,13.216,132.7471]
[1672916617414,109.275,13.229,13.216,20.0]
[1672916617615,109.275,13.229,13.215,20.0]
[1672916617830,109.275,13.229,13.215,40.0]
[1672916618040,131.02425107,13.229,13.215,40.0]
[1672916619638,131.02425107,13.229,13.215,20.0]
[1672916620158,131.02425107,13.229,13.215,40.0]
[1672916624170,131.02425107,13.229,13.215,20.0]
[1672916624579,20.0,13.228,13.215,20.0]
[1672916624892,6.51,13.22,13.205,38.65164499]
[1672916625081,115.2855,13.219,13.206,20.0]
[1672916625297,115.2855,13.219,13.205,20.0]
[1672916625510,115.2855,13.219,13.206,20.0]
[1672916625716,115.2855,13.219,13.208,20.0]
[1672916627199,115.2855,13.219,13.207,56.83]
[1672916631079,115.2855,13.219,13.206,20.0]
[1672916631289,115.2855,13.219,13.206,40.0]
[1672916631500,115.2855,13.219,13.206,20.0]
[1672916631959,115.2855,13.219,13.206,40.0]
[1672916632141,115.2855,13.219,13.206,20.0]
[1672916632352,115.2855,13.219,13.206,40.0]
[1672916632671,115.2855,13.219,13.206,20.0]
[1672916633108,115.2855,13.219,13.206,40.0]
[1672916633616,115.2855,13.219,13.205,56.84]
[1672916633824,115.2855,13.219,13.207,20.0]
[1672916634681,115.2855,13.219,13.207,19.0]
[1672916634902,20.0,13.218,13.207,75.83]
[1672916635086,115.2855,13.219,13.207,19.0]
[1672916635302,115.2855,13.219,13.206,20.0]
[1672916636459,115.2855,13.219,13.206,40.0]
[1672916637000,115.2855,13.219,13.205,56.84]
[1672916637214,115.2855,13.219,13.207,20.0]
[1672916639320,115.2855,13.219,13.207,76.83]
[1672916640262,53.64113065,13.22,13.207,76.83]
[1672916640263,6.52,13.22,13.207,76.83]
[1672916642868,6.49,13.22,13.207,76.83]
[1672916644443,6.49,13.22,13.207,124.0840277]
[1672916644649,1.49,13.22,13.207,124.0840277]
[1672916645831,1.49,13.22,13.207,76.83]
[1672916658032,1.49,13.22,13.207,99.24737149]
[1672916658251,1.49,13.22,13.207,76.83]
[1672916663914,1.49,13.22,13.207,56.83]
[1672916664227,1.49,13.22,13.207,20.0]
[1672916664444,1.49,13.22,13.209,20.0]
[1672916665723,1.49,13.22,13.208,56.82]
[1672916673599,2.15812042,13.22,13.208,56.82]
[1672916673801,2.82624084,13.22,13.208,56.82]
[1672916674979,2.82624084,13.22,13.207,20.0]
[1672916675163,2.82624084,13.22,13.208,56.82]
[1672916675375,28.88624084,13.22,13.208,56.82]
[1672916675586,28.88624084,13.22,13.207,20.0]
[1672916675796,28.88624084,13.22,13.208,56.82]
[1672916676446,28.88624084,13.22,13.206,56.83]
[1672916676960,28.88624084,13.22,13.207,20.0]
[1672916677165,28.88624084,13.22,13.208,56.82]
[1672916678237,28.88624084,13.22,13.207,20.0]
[1672916678431,28.88624084,13.22,13.208,56.82]
[1672916679493,28.88624084,13.22,13.207,20.0]
[1672916679702,28.88624084,13.22,13.208,56.82]
[1672916680981,28.88624084,13.22,13.207,20.0]
[1672916681159,28.88624084,13.22,13.208,56.82]
[1672916682331,28.88624084,13.22,13.207,20.0]
[1672916682544,28.88624084,13.22,13.208,56.82]
[1672916682732,49.29925107,13.22,13.209,20.0]
[1672916683386,49.29925107,13.22,13.208,56.82]
[1672916684413,49.29925107,13.22,13.207,20.0]
[1672916684728,49.29925107,13.22,13.209,20.0]
[1672916684938,49.29925107,13.22,13.21,56.81]
[1672916685152,49.29925107,13.22,13.209,20.0]
[1672916685366,49.29925107,13.22,13.208,56.82]
[1672916687373,49.29925107,13.22,13.207,20.0]
[1672916687565,49.29925107,13.22,13.208,56.82]
[1672916688205,49.29925107,13.22,13.207,20.0]
[1672916688531,49.29925107,13.22,13.208,56.82]
[1672916688721,49.29925107,13.22,13.207,20.0]
[1672916688930,49.29925107,13.22,13.208,56.82]
[1672916689470,49.29925107,13.22,13.207,20.0]
[1672916689672,49.29925107,13.22,13.208,56.82]
[1672916690420,49.29925107,13.22,13.207,20.0]
[1672916690821,1.33624084,13.219,13.207,20.0]
[1672916691364,1.33624084,13.219,13.209,20.0]
[1672916692731,27.55,13.22,13.208,56.82]
[1672916693267,27.55,13.22,13.209,20.0]
[1672916693979,49.96737149,13.22,13.208,56.82]
[1672916694921,49.96737149,13.22,13.207,20.0]
[1672916695130,49.96737149,13.22,13.208,56.82]
[1672916695577,49.96737149,13.22,13.207,20.0]
[1672916697018,49.96737149,13.22,13.206,56.83]
[1672916698699,49.96737149,13.22,13.206,20.0]
[1672916699881,49.96737149,13.22,13.205,56.84]
[1672916700088,49.96737149,13.22,13.206,40.0]
[1672916700300,20.0,13.219,13.206,20.0]
[1672916700716,20.0,13.217,13.205,56.84]
[1672916700943,176.95393774,13.216,13.199,56.86]
[1672916701261,176.95393774,13.216,13.2,20.0]
[1672916701262,6.5,13.21,13.2,20.0]
[1672916701462,6.5,13.21,13.201,56.85]
[1672916702940,20.0,13.215,13.201,56.85]
[1672916703143,20.0,13.214,13.201,56.85]
[1672916704515,20.0,13.214,13.2,20.0]
[1672916704718,20.0,13.214,13.201,56.85]
[1672916705435,20.66812042,13.213,13.201,56.85]
[1672916705657,42.41737149,13.213,13.201,56.85]
[1672916705883,42.41737149,13.213,13.2,20.0]
[1672916706201,42.41737149,13.213,13.202,20.0]
[1672916706380,42.41737149,13.213,13.201,56.85]
[1672916707017,20.0,13.213,13.201,56.85]
[1672916707227,0.66812042,13.212,13.201,56.85]
[1672916707443,1.33624084,13.212,13.201,56.85]
[1672916708611,6.49,13.21,13.2,20.0]
[1672916708821,6.49,13.21,13.201,56.85]
[1672916711132,6.49,13.21,13.2,20.0]
[1672916711343,6.49,13.21,13.201,56.85]
[1672916711659,28.90737149,13.21,13.199,56.86]
[1672916712183,28.90737149,13.21,13.198,56.87]
[1672916713217,28.90737149,13.21,13.199,20.0]
[1672916714274,28.90737149,13.21,13.2,56.86]
[1672916714605,28.90737149,13.21,13.199,20.0]
[1672916714806,28.90737149,13.21,13.201,20.0]
[1672916715019,6.49,13.21,13.201,20.0]
[1672916715847,6.49,13.21,13.2,56.86]
[1672916717115,7.82624084,13.21,13.199,20.0]
[1672916717317,21.08113065,13.209,13.199,20.0]
[1672916718174,21.08113065,13.209,13.198,56.87]
[1672916719003,21.08113065,13.209,13.198,20.0]
[1672916720041,21.08113065,13.209,13.197,76.87]
[1672916720911,21.08113065,13.209,13.197,56.87]
[1672916721112,21.08113065,13.209,13.197,76.87]
[1672916721430,21.08113065,13.209,13.198,20.0]
[1672916721758,21.08113065,13.209,13.199,56.86]
[1672916721959,21.08113065,13.209,13.198,76.87]
[1672916722487,21.08113065,13.209,13.198,56.87]
[1672916722671,21.08113065,13.209,13.197,56.87]
[1672916723001,21.08113065,13.209,13.197,76.87]
[1672916723207,21.08113065,13.209,13.197,56.87]
[1672916725636,21.08113065,13.209,13.197,76.87]
[1672916725834,21.08113065,13.209,13.197,56.87]
[1672916726883,21.08113065,13.209,13.196,56.87]
[1672916727095,20.0,13.208,13.196,56.87]
[1672916727503,0.66812042,13.207,13.195,174.7961]
[1672916727721,20.0,13.208,13.197,20.0]
[1672916727934,21.33624084,13.208,13.195,174.7961]
[1672916728258,42.41737149,13.208,13.196,20.0]
[1672916729728,22.41737149,13.208,13.196,20.0]
[1672916730366,32.55,13.21,13.196,40.0]
[1672916730679,22.41737149,13.209,13.196,40.0]
[1672916732157,22.41737149,13.209,13.197,76.87]
[1672916732898,32.55,13.21,13.197,76.87]
[1672916733121,54.96737149,13.21,13.197,76.87]
[1672916733647,54.96737149,13.21,13.197,56.87]
[1672916734372,54.96737149,13.21,13.196,76.87]
[1672916750003,20.0,13.208,13.196,56.87]
[1672916750212,20.0,13.207,13.196,56.87]
[1672916750525,21.74925107,13.206,13.196,56.87]
[1672916750737,20.0,13.204,13.19,56.9]
[1672916750948,20.0,13.203,13.191,20.0]
[1672916751260,20.0,13.203,13.193,20.0]
[1672916751486,20.0,13.206,13.194,55.88]
[1672916755698,20.0,13.206,13.193,20.0]
[1672916755913,20.0,13.206,13.194,56.88]
[1672916756944,20.66812042,13.205,13.194,56.88]
[1672916757154,42.41737149,13.205,13.194,56.88]
[1672916757381,20.0,13.204,13.194,56.88]
[1672916757689,20.0,13.204,13.193,20.0]
[1672916757878,6.52,13.2,13.194,56.88]
[1672916758094,32.58,13.21,13.195,20.0]
[1672916758305,32.58,13.21,13.197,20.0]
[1672916758515,54.99737149,13.21,13.198,56.87]
[1672916758738,54.99737149,13.21,13.199,20.0]
[1672916759779,54.99737149,13.21,13.198,56.87]
[1672916762207,54.99737149,13.21,13.197,76.87]
[1672916762421,114.37532042,13.209,13.197,76.87]
[1672916762624,136.12457149,13.209,13.197,56.87]
[1672916762832,136.12457149,13.209,13.196,76.87]
[1672916769282,136.12457149,13.209,13.196,56.87]
[1672916770089,113.7072,13.209,13.196,56.87]
[1672916770413,113.7072,13.209,13.197,20.0]
[1672916777540,113.7072,13.209,13.195,171.199]
[1672916777746,113.7072,13.209,13.197,20.0]
[1672916778917,114.37532042,13.209,13.195,114.319]
[1672916779235,136.12457149,13.209,13.196,20.0]
[1672916780494,20.0,13.208,13.196,20.0]
[1672916780917,20.66812042,13.208,13.196,20.0]
[1672916781128,42.41737149,13.208,13.193,56.89]
[1672916781341,6.53,13.2,13.191,56.9]
[1672916781547,6.53,13.2,13.189,76.9]
[1672916784907,113.7072,13.209,13.191,20.0]
[1672916785116,113.7072,13.209,13.192,76.89]
[1672916785327,113.7072,13.209,13.193,20.0]
[1672916785537,113.7072,13.209,13.195,20.0]
[1672916785766,113.7072,13.209,13.197,20.0]
[1672916789540,113.7072,13.209,13.195,130.0561]
[1672916789747,113.7072,13.209,13.197,20.0]
[1672916791439,113.7072,13.209,13.195,130.0561]
[1672916791749,113.7072,13.209,13.196,20.0]
[1672916793023,114.37532042,13.209,13.196,20.0]
[1672916793242,136.12457149,13.209,13.196,20.0]
[1672916794916,20.0,13.208,13.196,20.0]
[1672916795427,0.66812042,13.207,13.196,20.0]
[1672916795638,1.33624084,13.207,13.196,20.0]
[1672916796178,20.0,13.208,13.196,20.0]
[1672916796496,2.00436126,13.207,13.196,20.0]
[1672916798466,22.00436126,13.207,13.193,56.89]
[1672916798677,6.48,13.2,13.189,56.9]
[1672916798901,6.48,13.2,13.188,175.257]
[1672916799124,6.48,13.2,13.188,118.347]
[1672916799868,6.48,13.2,13.189,20.0]
[1672916804485,6.48,13.2,13.189,76.9]
[1672916811421,6.48,13.2,13.189,56.9]
[1672916818963,32.6,13.2,13.189,56.9]
[1672916819172,33.30812042,13.2,13.187,56.91]
[1672916819501,20.0,13.198,13.187,56.91]
[1672916821502,20.66812042,13.198,13.187,56.91]
[1672916821707,42.41737149,13.198,13.187,56.91]
[1672916822031,42.41737149,13.198,13.184,20.0]
[1672916822220,42.41737149,13.198,13.186,20.0]
[1672916822429,22.41737149,13.198,13.186,20.0]
[1672916822640,22.41737149,13.198,13.188,20.0]
[1672916823081,22.41737149,13.198,13.187,56.91]
[1672916824774,22.41737149,13.198,13.184,20.0]
[1672916824956,22.41737149,13.198,13.185,76.92]
[1672916826852,22.41737149,13.198,13.185,20.0]
[1672916827069,22.41737149,13.198,13.186,56.92]
[1672916827279,22.41737149,13.198,13.186,20.0]
[1672916827475,22.41737149,13.198,13.187,56.91]
[1672916828105,22.41737149,13.198,13.186,20.0]
[1672916828419,22.41737149,13.198,13.187,56.91]
[1672916829596,22.41737149,13.198,13.186,20.0]
[1672916829906,22.41737149,13.198,13.187,56.91]
[1672916831595,22.41737149,13.198,13.186,20.0]
[1672916831791,22.41737149,13.198,13.187,56.91]
[1672916832213,22.41737149,13.198,13.186,20.0]
[1672916832425,22.41737149,13.198,13.185,56.92]
[1672916832635,22.41737149,13.198,13.186,20.0]
[1672916832950,22.41737149,13.198,13.186,40.0]
[1672916833159,22.41737149,13.198,13.186,20.0]
[1672916834118,22.41737149,13.198,13.185,76.92]
[1672916837596,32.64,13.2,13.185,76.92]
[1672916837782,20.0,13.198,13.185,76.92]
[1672916838324,20.66812042,13.198,13.185,76.92]
[1672916838524,21.74925107,13.198,13.186,20.0]
[1672916838737,6.58,13.2,13.187,56.91]
[1672916838946,6.58,13.2,13.188,20.0]
[1672916839148,6.58,13.2,13.189,56.9]
[1672916839358,6.58,13.2,13.19,20.0]
[1672916839573,6.58,13.2,13.192,20.0]
[1672916841164,6.58,13.2,13.193,56.89]
[1672916841371,6.58,13.2,13.192,20.0]
[1672916842111,6.58,13.2,13.191,56.9]
[1672916845814,6.58,13.2,13.19,76.9]
[1672916847064,6.58,13.2,13.19,56.9]
[1672916851352,6.58,13.2,13.19,20.0]
[1672916851577,6.58,13.2,13.192,20.0]
[1672916851898,6.58,13.2,13.191,56.9]
[1672916853237,33.36812042,13.2,13.191,56.9]
[1672916853457,55.11737149,13.2,13.189,20.0]
[1672916853663,55.11737149,13.2,13.19,56.9]
[1672916854094,55.11737149,13.2,13.188,56.91]
[1672916854308,55.11737149,13.2,13.189,20.0]
[1672916855236,55.11737149,13.2,13.19,56.9]
[1672916855447,55.11737149,13.2,13.189,20.0]
[1672916856292,55.11737149,13.2,13.188,56.91]
[1672916857676,55.11737149,13.2,13.189,20.0]
[1672916857870,55.11737149,13.2,13.191,20.0]
[1672916859037,55.11737149,13.2,13.19,56.9]
[1672916859234,55.11737149,13.2,13.189,20.0]
[1672916859775,55.11737149,13.2,13.191,20.0]
[1672916859989,55.11737149,13.2,13.189,20.0]
[1672916860510,55.11737149,13.2,13.188,56.91]
[1672916863754,55.11737149,13.2,13.188,20.0]
[1672916866294,55.11737149,13.2,13.19,20.0]
[1672916867634,55.11737149,13.2,13.189,56.9]
[1672916868815,55.11737149,13.2,13.188,20.0]
[1672916870368,55.11737149,13.2,13.187,56.91]
[1672916871125,55.11737149,13.2,13.188,20.0]
[1672916871327,55.11737149,13.2,13.19,20.0]
[1672916872071,55.11737149,13.2,13.188,20.0]
[1672916878692,55.11737149,13.2,13.186,20.0]
[1672916879211,55.11737149,13.2,13.185,96.92]
[1672916880378,55.11737149,13.2,13.185,76.92]
[1672916882246,20.0,13.199,13.185,76.92]
[1672916882459,20.0,13.199,13.186,20.0]
[1672916882897,1.33624084,13.198,13.186,20.0]
[1672916885309,1.33624084,13.198,13.185,40.0]
[1672916886448,1.33624084,13.198,13.186,20.0]
[1672916886676,1.33624084,13.198,13.186,76.92]
[1672916888659,32.7,13.2,13.186,76.92]
[1672916888873,55.11737149,13.2,13.186,76.92]
[1672916896361,6.58,13.2,13.186,76.92]
[1672916896569,6.58,13.2,13.188,20.0]
[1672916896782,6.58,13.2,13.189,56.9]
[1672916897001,6.58,13.2,13.19,20.0]
[1672916897183,6.58,13.2,13.191,56.9]
[1672916897605,6.58,13.2,13.192,20.0]
[1672916900037,6.58,13.2,13.191,56.9]
[1672916902146,6.58,13.2,13.19,76.9]
[1672916912959,109.8512,13.202,13.19,76.9]
[1672916917282,109.8512,13.202,13.19,153.24766022]
[1672916917703,109.8512,13.202,13.19,130.83028873]
[1672916919486,109.8512,13.202,13.191,22.41737149]
[1672916919695,113.7072,13.209,13.193,20.0]
[1672916919908,113.7072,13.209,13.194,76.88]
[1672916920097,136.12457149,13.209,13.195,20.0]
[1672916920307,136.12457149,13.209,13.197,20.0]
[1672916925351,32.63,13.22,13.2,6.53]
[1672916925563,6.51,13.22,13.201,76.74345856]
[1672916925770,6.51,13.22,13.201,283.08903367]
[1672916926091,6.51,13.22,13.202,331.35383785]
[1672916926295,6.51,13.22,13.204,20.0]
[1672916926505,6.51,13.22,13.206,20.0]
[1672916926718,6.51,13.22,13.207,56.83]
[1672916926944,6.51,13.22,13.208,20.0]
[1672916927172,6.51,13.22,13.21,20.0]
[1672916927351,6.51,13.22,13.212,20.0]
[1672916927981,20.0,13.227,13.212,42.41737149]
[1672916928201,114.3825,13.226,13.212,158.43626091]
[1672916928424,114.3825,13.226,13.212,136.01888942]
[1672916929061,114.3825,13.226,13.212,158.43626091]
[1672916930734,114.3825,13.226,13.212,138.43626091]
[1672916933693,114.3825,13.226,13.213,20.0]
[1672916934928,114.3825,13.226,13.214,22.41737149]
[1672916935143,114.3825,13.226,13.215,20.0]
[1672916935351,114.3825,13.226,13.214,22.41737149]
[1672916937366,114.3825,13.226,13.212,116.01888942]
[1672916937559,114.3825,13.226,13.213,20.0]
[1672916939046,114.3825,13.226,13.213,131.70888276]
[1672916940610,114.3825,13.226,13.213,154.12625425]
[1672916942630,20.0,13.225,13.213,235.29973958]
[1672916943680,20.0,13.225,13.213,292.09973958]
[1672916944083,20.0,13.225,13.213,235.29973958]
[1672916944501,20.0,13.225,13.213,297.30008165]
[1672916946521,20.0,13.225,13.213,277.30008165]
[1672916946732,6.53,13.22,13.209,56.82]
[1672916946925,6.53,13.22,13.209,79.23737149]
[1672916947880,6.53,13.22,13.209,56.82]
[1672916948098,20.0,13.219,13.198,20.0]
[1672916948307,6.48,13.21,13.198,20.0]
[1672916948618,6.48,13.21,13.2,22.41737149]
[1672916948810,6.48,13.21,13.202,20.0]
[1672916949249,138.8709,13.219,13.202,42.41737149]
[1672916949463,118.8709,13.219,13.203,20.0]
[1672916949643,118.8709,13.219,13.205,20.0]
[1672916949861,118.8709,13.219,13.207,20.0]
[1672916950706,118.8709,13.219,13.207,42.41737149]
[1672916953769,6.52,13.22,13.207,42.41737149]
[1672916953986,6.52,13.22,13.209,20.0]
[1672916954498,6.44809726,13.22,13.211,20.0]
[1672916954720,6.52,13.22,13.211,20.0]
[1672916957453,6.52,13.22,13.206,56.83]
[1672916957661,6.52,13.22,13.204,76.84]
[1672916957873,6.52,13.22,13.207,20.0]
[1672916958065,12.98,13.22,13.207,76.83]
[1672916958272,12.98,13.22,13.207,42.41737149]
[1672916958502,12.98,13.22,13.207,22.41737149]
[1672916958720,12.98,13.22,13.201,20.0]
[1672916958721,20.0,13.219,13.205,56.84]
[1672916959029,20.0,13.218,13.205,22.41737149]
[1672916959247,20.0,13.218,13.203,76.84]
[1672916959448,112.8323,13.217,13.203,76.84]
[1672916959659,20.0,13.216,13.203,76.84]
[1672916959855,134.0146,13.216,13.203,76.84]
[1672916963044,134.0146,13.216,13.203,20.0]
[1672916963655,134.0146,13.216,13.203,42.41737149]
[1672916966513,112.8323,13.217,13.205,20.0]
[1672916966707,112.8323,13.217,13.207,20.0]
[1672916966921,112.8323,13.217,13.209,20.0]
[1672916968067,112.8323,13.217,13.209,42.41737149]
[1672916970814,112.8323,13.217,13.209,20.0]
[1672916975325,112.8323,13.217,13.209,42.41737149]
[1672916977224,112.8323,13.217,13.209,22.41737149]
[1672916983447,6.46,13.22,13.209,42.41737149]
[1672916983835,6.46,13.22,13.209,22.41737149]
[1672916991840,6.46,13.22,13.207,76.83]
[1672916992064,20.0,13.219,13.208,22.41737149]
[1672916992383,40.0,13.219,13.204,76.84]
[1672916992697,5.80185013,13.218,13.204,20.0]
[1672916992902,20.0,13.216,13.204,20.0]
[1672916993100,20.0,13.215,13.204,20.0]
[1672916993529,20.0,13.215,13.203,20.0]
[1672916994369,20.0,13.215,13.201,99.26737149]
[1672916995222,20.0,13.215,13.202,20.0]
[1672916998692,6.52,13.21,13.202,20.0]
[1672917002915,6.52,13.21,13.201,42.41737149]
[1672917005645,6.52,13.21,13.201,22.41737149]
[1672917006165,6.52,13.21,13.2,156.86]
[1672917006385,117.2043,13.209,13.2,100.0]
[1672917012904,20.0,13.208,13.2,100.0]
[1672917014163,123.00615013,13.209,13.2,100.0]
[1672917014901,117.2043,13.209,13.2,100.0]
[1672917025415,6.58,13.21,13.2,100.0]
[1672917025630,2.515395,13.214,13.202,20.0]
[1672917025945,2.515395,13.214,13.203,22.41737149]
[1672917026160,2.515395,13.214,13.204,20.0]
[1672917029940,2.515395,13.214,13.201,79.26737149]
[1672917030128,6.52,13.21,13.2,100.0]
[1672917030452,113.3972,13.209,13.2,100.0]
[1672917031067,113.3972,13.209,13.201,20.0]
[1672917032969,113.3972,13.209,13.2,100.0]
[1672917067587,32.65,13.21,13.2,100.0]
[1672917067588,115.1538,13.213,13.201,56.85]
[1672917067902,115.1538,13.213,13.202,20.0]
[1672917069576,2.515395,13.214,13.202,20.0]
[1672917069577,2.515395,13.214,13.204,20.0]
[1672917069893,2.515395,13.214,13.205,99.25737149]
[1672917070093,2.515395,13.214,13.206,20.0]
[1672917070303,2.515395,13.214,13.208,20.0]
[1672917070515,2.515395,13.214,13.21,20.0]
[1672917070832,2.515395,13.214,13.212,20.0]
[1672917073499,2.515395,13.214,13.211,56.81]
[1672917073896,2.515395,13.214,13.21,20.0]
[1672917078622,2.515395,13.214,13.21,76.81]
[1672917079570,0.005395,13.214,13.21,157.42835461]
[1672917079779,114.8359,13.227,13.211,20.0]
[1672917080109,114.8359,13.227,13.213,20.0]
[1672917080526,114.8359,13.227,13.215,20.0]
[1672917080949,114.3359,13.227,13.215,20.0]
[1672917081145,20.0,13.226,13.215,20.0]
[1672917081357,20.0,13.226,13.215,42.41737149]
[1672917081788,20.0,13.226,13.215,20.0]
[1672917082088,20.0,13.226,13.216,22.41737149]
[1672917082316,20.0,13.226,13.215,20.0]
[1672917083352,20.0,13.226,13.216,22.41737149]
[1672917083875,20.0,13.226,13.215,20.0]
[1672917084317,20.0,13.226,13.215,42.41737149]
[1672917084529,20.0,13.226,13.215,20.0]